fUSD/lending_fUSD_20260614
["ID","MTS","AMOUNT","RATE_DAILY","PERIOD"]
[425039147,1781440246000,-151.0,0.00022019,2]
[425039144,1781440246000,-151.0,0.00022019,2]
[425039146,1781440246000,-151.0,0.00022019,2]
[425039140,1781440246000,-151.0,0.00022019,2]
[425039152,1781440246000,-1059.06590101,0.000221,2]
[425039151,1781440246000,-1989.63765049,0.000221,2]
[425039141,1781440246000,-151.0,0.00022019,2]
[425039135,1781440246000,-151.0,0.00022019,2]
[425039129,1781440246000,-151.0,0.00022019,2]
[425039134,1781440246000,-500.0,0.00022019,2]
[425039131,1781440246000,-500.0,0.00022019,2]
[425039293,1781440247000,-150.0,0.00026,2]
[425039285,1781440247000,-175.22982642,0.00025951,2]
[425039292,1781440247000,-150.0,0.00026,2]
[425039286,1781440247000,-1236.98488124,0.00025974,2]
[425039278,1781440247000,-150.23712873,0.00025442,2]
[425039281,1781440247000,-628.01,0.00025786,2]
[425039280,1781440247000,-890.61381358,0.00025647,14]
[425039279,1781440247000,-9447.38792675,0.00025513,2]
[425039276,1781440247000,-156.62,0.00025,2]
[425039284,1781440247000,-419.28,0.00025786,2]
[425039283,1781440247000,-10061.79,0.00025786,2]
[425039287,1781440247000,-150.0,0.00026,2]
[425039282,1781440247000,-945.02,0.00025786,2]
[425039296,1781440247000,-166.0,0.0002601,3]
[425039301,1781440247000,-156.2469622,0.00026279,2]
[425039290,1781440247000,-150.0,0.00026,2]
[425039295,1781440247000,-262.15,0.00026,2]
[425039297,1781440247000,-166.0,0.0002601,3]
[425039291,1781440247000,-150.0,0.00026,2]
[425039288,1781440247000,-150.0,0.00026,2]
[425039289,1781440247000,-150.0,0.00026,2]
[425039299,1781440247000,-667.86395078,0.00026091,2]
[425039303,1781440247000,-383.0,0.00026394,2]
[425039308,1781440247000,-153.74,0.00026619,120]
[425039300,1781440247000,-166.66,0.00026253,2]
[425039307,1781440247000,-608.64,0.00026567,120]
[425039304,1781440247000,-1275.0,0.00026394,2]
[425039272,1781440247000,-941.0,0.00025,2]
[425039294,1781440247000,-150.0,0.00026,2]
[425039277,1781440247000,-150.0,0.00025373,2]
[425039250,1781440247000,-500.0,0.00024514,2]
[425039275,1781440247000,-521.0,0.00025,2]
[425039244,1781440247000,-10061.79,0.00024174,2]
[425039246,1781440247000,-151.0,0.00024211,2]
[425039245,1781440247000,-419.28,0.00024174,2]
[425039247,1781440247000,-200.0,0.00024211,2]
[425039248,1781440247000,-620.8,0.00024324,2]
[425039257,1781440247000,-500.0,0.00024514,2]
[425039249,1781440247000,-608.64,0.00024353,2]
[425039309,1781440247000,-150.0,0.00026641,2]
[425039254,1781440247000,-500.0,0.00024514,2]
[425039253,1781440247000,-500.0,0.00024514,2]
[425039255,1781440247000,-500.0,0.00024514,2]
[425039252,1781440247000,-500.0,0.00024514,2]
[425039251,1781440247000,-500.0,0.00024514,2]
[425039273,1781440247000,-252.0,0.00025,2]
[425039259,1781440247000,-500.0,0.00024514,2]
[425039270,1781440247000,-215.0,0.00025,2]
[425039266,1781440247000,-500.0,0.00024998,2]
[425039267,1781440247000,-500.0,0.00024998,2]
[425039261,1781440247000,-1236.98488124,0.00024622,2]
[425039262,1781440247000,-1000.0,0.00024658,2]
[425039260,1781440247000,-9447.38792675,0.0002461,2]
[425039258,1781440247000,-603.1,0.00024514,2]
[425039265,1781440247000,-876.46,0.00024798,2]
[425039264,1781440247000,-667.86395078,0.00024684,2]
[425039263,1781440247000,-175.13,0.00024658,2]
[425039268,1781440247000,-191.0,0.00025,2]
[425039271,1781440247000,-580.0,0.00025,2]
[425039274,1781440247000,-172.0,0.00025,2]
[425039269,1781440247000,-307.0,0.00025,2]
[425039305,1781440247000,-1228.0,0.00026394,2]
[425039256,1781440247000,-500.0,0.00024514,2]
[425039302,1781440247000,-620.8,0.00026296,2]
[425039339,1781440247000,-427.89155072,0.00026701,2]
[425039346,1781440247000,-500.0,0.00026701,2]
[425039336,1781440247000,-152.0,0.00026701,2]
[425039348,1781440247000,-4853.74383408,0.00026701,2]
[425039341,1781440247000,-151.0,0.00026701,2]
[425039340,1781440247000,-721.12765534,0.00026701,2]
[425039344,1781440247000,-152.0,0.00026701,2]
[425039342,1781440247000,-151.0,0.00026701,2]
[425039350,1781440247000,-152.0,0.00026701,2]
[425039357,1781440247000,-152.0,0.00026701,2]
[425039359,1781440247000,-152.0,0.00026701,2]
[425039361,1781440247000,-152.0,0.00026701,2]
[425039356,1781440247000,-500.0,0.00026701,2]
[425039354,1781440247000,-500.0,0.00026701,2]
[425039353,1781440247000,-152.0,0.00026701,2]
[425039351,1781440247000,-500.0,0.00026701,2]
[425039355,1781440247000,-152.0,0.00026701,2]
[425039360,1781440247000,-152.0,0.00026701,2]
[425039352,1781440247000,-500.0,0.00026701,2]
[425039358,1781440247000,-500.0,0.00026701,2]
[425039363,1781440247000,-446.82292894,0.00026756,2]
[425039364,1781440247000,-151.0,0.00026756,2]
[425039362,1781440247000,-152.0,0.00026701,2]
[425039365,1781440247000,-4156.17322905,0.00026756,2]
[425039366,1781440247000,-500.0,0.0002678,2]
[425039369,1781440247000,-446.82292894,0.00026811,2]
[425039367,1781440247000,-500.0,0.0002678,2]
[425039370,1781440247000,-151.0,0.00026811,2]
[425039298,1781440247000,-249.41,0.00026027,7]
[425039338,1781440247000,-151.0,0.00026701,2]
[425039343,1781440247000,-500.0,0.00026701,2]
[425039368,1781440247000,-4644.4129901,0.00026806,2]
[425039349,1781440247000,-500.0,0.00026701,2]
[425039345,1781440247000,-209.40437684,0.00026701,2]
[425039306,1781440247000,-9447.38792675,0.00026417,2]
[425039311,1781440247000,-4146.28531401,0.00026647,14]
[425039321,1781440247000,-1191.11104074,0.00026701,2]
[425039312,1781440247000,-167.6,0.00026652,2]
[425039313,1781440247000,-270.48006455,0.00026701,2]
[425039314,1781440247000,-360.32483803,0.00026701,2]
[425039315,1781440247000,-1030.0,0.00026701,2]
[425039318,1781440247000,-209.40437684,0.00026701,2]
[425039316,1781440247000,-1068.11,0.00026701,2]
[425039319,1781440247000,-446.82292894,0.00026701,2]
[425039317,1781440247000,-1107.63007,0.00026701,2]
[425039320,1781440247000,-1148.61238259,0.00026701,2]
[425039322,1781440247000,-152.51103483,0.00026701,2]
[425039310,1781440247000,-2350.34394492,0.00026647,14]
[425039325,1781440247000,-1280.88388877,0.00026701,2]
[425039326,1781440247000,-1328.27659266,0.00026701,2]
[425039337,1781440247000,-500.0,0.00026701,2]
[425039332,1781440247000,-1536.04360648,0.00026701,2]
[425039335,1781440247000,-1592.87721992,0.00026701,2]
[425039334,1781440247000,-500.0,0.00026701,2]
[425039329,1781440247000,-1481.2378076,0.00026701,2]
[425039330,1781440247000,-578.20924308,0.00026701,2]
[425039327,1781440247000,-1377.42282658,0.00026701,2]
[425039323,1781440247000,-174.61919141,0.00026701,2]
[425039331,1781440247000,-500.0,0.00026701,2]
[425039328,1781440247000,-1428.38747117,0.00026701,2]
[425039324,1781440247000,-1235.18214925,0.00026701,2]
[425039347,1781440247000,-152.0,0.00026701,2]
[425039333,1781440247000,-151.0,0.00026701,2]
[425039398,1781440248000,-500.0,0.00027123,2]
[425039399,1781440248000,-500.0,0.00027123,2]
[425039401,1781440248000,-150.0,0.00027123,2]
[425039403,1781440248000,-500.0,0.00027123,2]
[425039402,1781440248000,-241.39364486,0.00027123,2]
[425039406,1781440248000,-500.0,0.00027123,2]
[425039405,1781440248000,-150.0,0.00027123,2]
[425039409,1781440248000,-500.0,0.00027123,2]
[425039408,1781440248000,-500.0,0.00027123,2]
[425039420,1781440248000,-500.0,0.00027123,2]
[425039404,1781440248000,-500.0,0.00027123,2]
[425039411,1781440248000,-500.0,0.00027123,2]
[425039410,1781440248000,-500.0,0.00027123,2]
[425039416,1781440248000,-500.0,0.00027123,2]
[425039418,1781440248000,-500.0,0.00027123,2]
[425039414,1781440248000,-500.0,0.00027123,2]
[425039417,1781440248000,-500.0,0.00027123,2]
[425039415,1781440248000,-500.0,0.00027123,2]
[425039412,1781440248000,-500.0,0.00027123,2]
[425039413,1781440248000,-500.0,0.00027123,2]
[425039422,1781440248000,-500.0,0.00027123,2]
[425039407,1781440248000,-500.0,0.00027123,2]
[425039423,1781440248000,-500.0,0.00027123,2]
[425039419,1781440248000,-500.0,0.00027123,2]
[425039400,1781440248000,-346.278215,0.00027123,2]
[425039378,1781440248000,-802.0,0.00026932,10]
[425039396,1781440248000,-166.66,0.0002712,2]
[425039430,1781440248000,-448.29391775,0.00027123,2]
[425039371,1781440248000,-446.82292894,0.00026866,2]
[425039372,1781440248000,-151.0,0.00026866,2]
[425039373,1781440248000,-150.0,0.00026877,7]
[425039374,1781440248000,-150.0,0.00026877,7]
[425039375,1781440248000,-165.89388249,0.00026877,7]
[425039380,1781440248000,-151.0,0.00026976,2]
[425039384,1781440248000,-3558.0,0.00027067,10]
[425039376,1781440248000,-446.82292894,0.00026921,2]
[425039381,1781440248000,-446.82292894,0.00027031,2]
[425039377,1781440248000,-151.0,0.00026921,2]
[425039383,1781440248000,-169.28681628,0.00027059,7]
[425039382,1781440248000,-151.0,0.00027031,2]
[425039379,1781440248000,-446.82292894,0.00026976,2]
[425039386,1781440248000,-193.86657884,0.00027069,7]
[425039385,1781440248000,-172.22792643,0.00027069,2]
[425039387,1781440248000,-173.29519318,0.00027069,7]
[425039389,1781440248000,-191.02259323,0.00027069,7]
[425039395,1781440248000,-949.91174747,0.00027096,2]
[425039394,1781440248000,-151.0,0.00027086,2]
[425039388,1781440248000,-166.26688009,0.00027069,7]
[425039390,1781440248000,-207.80447072,0.00027069,7]
[425039391,1781440248000,-189.77203445,0.00027069,7]
[425039393,1781440248000,-446.82292894,0.00027086,2]
[425039392,1781440248000,-156.03499092,0.00027069,7]
[425039397,1781440248000,-500.0,0.00027123,2]
[425039431,1781440248000,-500.0,0.00027123,2]
[425039429,1781440248000,-394.98714745,0.00027123,2]
[425039432,1781440248000,-500.0,0.00027123,2]
[425039455,1781440248000,-287.21257283,0.00027123,2]
[425039454,1781440248000,-500.0,0.00027123,2]
[425039459,1781440248000,-163.2095384,0.00027123,2]
[425039461,1781440248000,-504.98006789,0.00027123,2]
[425039469,1781440248000,-500.0,0.00027123,2]
[425039458,1781440248000,-500.0,0.00027123,2]
[425039460,1781440248000,-500.0,0.00027123,2]
[425039462,1781440248000,-500.0,0.00027123,2]
[425039463,1781440248000,-500.0,0.00027123,2]
[425039465,1781440248000,-418.91734028,0.00027123,2]
[425039468,1781440248000,-500.0,0.00027123,2]
[425039452,1781440248000,-150.51794787,0.00027123,2]
[425039464,1781440248000,-500.0,0.00027123,2]
[425039470,1781440248000,-222.85351328,0.00027123,2]
[425039474,1781440248000,-500.0,0.00027123,2]
[425039471,1781440248000,-500.0,0.00027123,2]
[425039473,1781440248000,-500.0,0.00027123,2]
[425039472,1781440248000,-500.0,0.00027123,2]
[425039475,1781440248000,-211.8140452,0.00027123,2]
[425039476,1781440248000,-500.0,0.00027123,2]
[425039479,1781440248000,-500.0,0.00027123,2]
[425039477,1781440248000,-500.0,0.00027123,2]
[425039478,1781440248000,-300.55477335,0.00027123,2]
[425039421,1781440248000,-500.0,0.00027123,2]
[425039466,1781440248000,-500.0,0.00027123,2]
[425039453,1781440248000,-500.0,0.00027123,2]
[425039467,1781440248000,-500.0,0.00027123,2]
[425039456,1781440248000,-150.0,0.00027123,2]
[425039457,1781440248000,-500.0,0.00027123,2]
[425039428,1781440248000,-500.0,0.00027123,2]
[425039424,1781440248000,-500.0,0.00027123,2]
[425039427,1781440248000,-500.0,0.00027123,2]
[425039426,1781440248000,-500.0,0.00027123,2]
[425039434,1781440248000,-500.0,0.00027123,2]
[425039436,1781440248000,-500.0,0.00027123,2]
[425039445,1781440248000,-500.0,0.00027123,2]
[425039433,1781440248000,-500.0,0.00027123,2]
[425039444,1781440248000,-500.0,0.00027123,2]
[425039435,1781440248000,-500.0,0.00027123,2]
[425039437,1781440248000,-500.0,0.00027123,2]
[425039425,1781440248000,-500.0,0.00027123,2]
[425039440,1781440248000,-500.0,0.00027123,2]
[425039442,1781440248000,-500.0,0.00027123,2]
[425039450,1781440248000,-150.23282818,0.00027123,2]
[425039449,1781440248000,-224.06122219,0.00027123,2]
[425039447,1781440248000,-500.0,0.00027123,2]
[425039448,1781440248000,-500.0,0.00027123,2]
[425039451,1781440248000,-150.0,0.00027123,2]
[425039438,1781440248000,-500.0,0.00027123,2]
[425039439,1781440248000,-500.0,0.00027123,2]
[425039443,1781440248000,-500.0,0.00027123,2]
[425039441,1781440248000,-500.0,0.00027123,2]
[425039446,1781440248000,-500.0,0.00027123,2]
[425039516,1781440249000,-500.0,0.00027397,2]
[425039517,1781440249000,-500.0,0.00027397,2]
[425039514,1781440249000,-500.0,0.00027397,2]
[425039510,1781440249000,-3000.0,0.00027396,3]
[425039512,1781440249000,-500.0,0.00027396,2]
[425039515,1781440249000,-575.74,0.00027397,2]
[425039509,1781440249000,-500.0,0.00027396,2]
[425039511,1781440249000,-300.0,0.00027396,7]
[425039513,1781440249000,-500.0,0.00027396,2]
[425039520,1781440249000,-500.0,0.00027397,2]
[425039506,1781440249000,-500.0,0.00027396,2]
[425039518,1781440249000,-500.0,0.00027397,2]
[425039519,1781440249000,-500.0,0.00027397,2]
[425039523,1781440249000,-500.0,0.00027397,2]
[425039525,1781440249000,-1332.77417179,0.00027397,2]
[425039524,1781440249000,-3813.87730825,0.00027397,2]
[425039521,1781440249000,-500.0,0.00027397,2]
[425039522,1781440249000,-315.38,0.00027397,2]
[425039527,1781440249000,-500.0,0.00027397,2]
[425039530,1781440249000,-500.0,0.00027397,2]
[425039531,1781440249000,-500.0,0.00027397,2]
[425039533,1781440249000,-500.0,0.00027397,2]
[425039536,1781440249000,-500.0,0.00027397,2]
[425039508,1781440249000,-500.0,0.00027396,2]
[425039526,1781440249000,-556.93550067,0.00027397,2]
[425039505,1781440249000,-500.0,0.00027396,2]
[425039529,1781440249000,-500.0,0.00027397,2]
[425039501,1781440249000,-160.0,0.00027353,2]
[425039480,1781440249000,-500.0,0.00027123,2]
[425039481,1781440249000,-500.0,0.00027123,2]
[425039482,1781440249000,-374.13126552,0.00027123,2]
[425039483,1781440249000,-160.44197512,0.00027123,2]
[425039488,1781440249000,-446.82292894,0.00027196,2]
[425039486,1781440249000,-6202.59485673,0.00027147,14]
[425039485,1781440249000,-151.0,0.00027141,2]
[425039487,1781440249000,-8392.329,0.00027147,14]
[425039484,1781440249000,-446.82292894,0.00027141,2]
[425039491,1781440249000,-328.83174586,0.00027249,2]
[425039492,1781440249000,-152.51103483,0.00027249,2]
[425039507,1781440249000,-500.0,0.00027396,2]
[425039489,1781440249000,-151.0,0.00027196,2]
[425039493,1781440249000,-181.08010149,0.00027249,2]
[425039495,1781440249000,-151.0,0.00027249,2]
[425039494,1781440249000,-151.0,0.00027249,2]
[425039496,1781440249000,-217.15233878,0.00027249,2]
[425039499,1781440249000,-9447.38792675,0.0002732,2]
[425039498,1781440249000,-151.0,0.00027251,2]
[425039497,1781440249000,-446.82292906,0.00027251,2]
[425039500,1781440249000,-1236.98488124,0.00027326,2]
[425039502,1781440249000,-2327.0,0.00027384,3]
[425039504,1781440249000,-500.0,0.00027396,2]
[425039503,1781440249000,-500.0,0.00027396,2]
[425039490,1781440249000,-360.32483803,0.00027249,2]
[425039534,1781440249000,-500.0,0.00027397,2]
[425039537,1781440249000,-500.0,0.00027397,2]
[425039528,1781440249000,-500.0,0.00027397,2]
[425039569,1781440249000,-505.32,0.00027397,2]
[425039565,1781440249000,-500.0,0.00027397,2]
[425039570,1781440249000,-500.0,0.00027397,2]
[425039568,1781440249000,-500.0,0.00027397,2]
[425039567,1781440249000,-500.0,0.00027397,2]
[425039566,1781440249000,-500.0,0.00027397,2]
[425039571,1781440249000,-397.14,0.00027397,2]
[425039573,1781440249000,-430.52885135,0.00027397,2]
[425039577,1781440249000,-500.0,0.00027397,2]
[425039578,1781440249000,-500.0,0.00027397,2]
[425039574,1781440249000,-166.38787555,0.00027397,2]
[425039576,1781440249000,-517.73803881,0.00027397,2]
[425039582,1781440249000,-500.0,0.00027397,2]
[425039581,1781440249000,-500.0,0.00027397,2]
[425039572,1781440249000,-500.0,0.00027397,2]
[425039575,1781440249000,-500.0,0.00027397,2]
[425039579,1781440249000,-500.0,0.00027397,2]
[425039584,1781440249000,-500.0,0.00027397,2]
[425039589,1781440249000,-510.01,0.00027397,2]
[425039587,1781440249000,-500.0,0.00027397,2]
[425039583,1781440249000,-500.0,0.00027397,2]
[425039588,1781440249000,-500.0,0.00027397,2]
[425039586,1781440249000,-500.0,0.00027397,2]
[425039585,1781440249000,-500.0,0.00027397,2]
[425039535,1781440249000,-500.0,0.00027397,2]
[425039563,1781440249000,-500.0,0.00027397,2]
[425039564,1781440249000,-500.0,0.00027397,2]
[425039580,1781440249000,-408.20166231,0.00027397,2]
[425039562,1781440249000,-500.0,0.00027397,2]
[425039561,1781440249000,-500.0,0.00027397,2]
[425039532,1781440249000,-500.0,0.00027397,2]
[425039548,1781440249000,-500.0,0.00027397,2]
[425039539,1781440249000,-500.0,0.00027397,2]
[425039538,1781440249000,-500.0,0.00027397,2]
[425039590,1781440249000,-500.0,0.00027397,2]
[425039541,1781440249000,-500.0,0.00027397,2]
[425039546,1781440249000,-500.0,0.00027397,2]
[425039540,1781440249000,-500.0,0.00027397,2]
[425039543,1781440249000,-500.0,0.00027397,2]
[425039547,1781440249000,-500.0,0.00027397,2]
[425039544,1781440249000,-174.87693639,0.00027397,2]
[425039545,1781440249000,-643.87,0.00027397,2]
[425039542,1781440249000,-500.0,0.00027397,2]
[425039556,1781440249000,-500.0,0.00027397,2]
[425039549,1781440249000,-500.0,0.00027397,2]
[425039555,1781440249000,-500.0,0.00027397,2]
[425039559,1781440249000,-500.0,0.00027397,2]
[425039553,1781440249000,-500.0,0.00027397,2]
[425039558,1781440249000,-500.0,0.00027397,2]
[425039552,1781440249000,-500.0,0.00027397,2]
[425039560,1781440249000,-500.0,0.00027397,2]
[425039550,1781440249000,-500.0,0.00027397,2]
[425039554,1781440249000,-500.0,0.00027397,2]
[425039551,1781440249000,-500.0,0.00027397,2]
[425039557,1781440249000,-500.0,0.00027397,2]
[425039631,1781440250000,-500.0,0.00027397,2]
[425039630,1781440250000,-598.27,0.00027397,2]
[425039627,1781440250000,-258.65,0.00027397,2]
[425039626,1781440250000,-540.85,0.00027397,2]
[425039622,1781440250000,-500.0,0.00027397,2]
[425039621,1781440250000,-500.0,0.00027397,2]
[425039628,1781440250000,-500.0,0.00027397,2]
[425039629,1781440250000,-297.01,0.00027397,2]
[425039625,1781440250000,-492.97,0.00027397,2]
[425039624,1781440250000,-500.0,0.00027397,2]
[425039633,1781440250000,-500.0,0.00027397,2]
[425039623,1781440250000,-500.0,0.00027397,2]
[425039643,1781440250000,-237.19,0.00027397,2]
[425039646,1781440250000,-500.0,0.00027397,2]
[425039635,1781440250000,-478.69,0.00027397,2]
[425039632,1781440250000,-635.3,0.00027397,2]
[425039636,1781440250000,-500.0,0.00027397,2]
[425039637,1781440250000,-500.0,0.00027397,2]
[425039634,1781440250000,-500.0,0.00027397,2]
[425039638,1781440250000,-500.0,0.00027397,2]
[425039642,1781440250000,-500.0,0.00027397,2]
[425039640,1781440250000,-500.0,0.00027397,2]
[425039641,1781440250000,-500.0,0.00027397,2]
[425039639,1781440250000,-500.0,0.00027397,2]
[425039647,1781440250000,-500.0,0.00027397,2]
[425039617,1781440250000,-500.0,0.00027397,2]
[425039644,1781440250000,-254.68,0.00027397,2]
[425039618,1781440250000,-500.0,0.00027397,2]
[425039594,1781440250000,-270.21,0.00027397,2]
[425039615,1781440250000,-500.0,0.00027397,2]
[425039651,1781440250000,-500.0,0.00027397,2]
[425039595,1781440250000,-500.0,0.00027397,2]
[425039593,1781440250000,-500.0,0.00027397,2]
[425039592,1781440250000,-500.0,0.00027397,2]
[425039591,1781440250000,-500.0,0.00027397,2]
[425039596,1781440250000,-500.0,0.00027397,2]
[425039599,1781440250000,-500.0,0.00027397,2]
[425039601,1781440250000,-500.0,0.00027397,2]
[425039600,1781440250000,-500.0,0.00027397,2]
[425039602,1781440250000,-469.64,0.00027397,2]
[425039604,1781440250000,-500.0,0.00027397,2]
[425039605,1781440250000,-500.0,0.00027397,2]
[425039616,1781440250000,-626.28,0.00027397,2]
[425039603,1781440250000,-500.0,0.00027397,2]
[425039606,1781440250000,-500.0,0.00027397,2]
[425039597,1781440250000,-500.0,0.00027397,2]
[425039607,1781440250000,-500.0,0.00027397,2]
[425039608,1781440250000,-500.0,0.00027397,2]
[425039610,1781440250000,-251.494105,0.00027397,2]
[425039611,1781440250000,-340.55312217,0.00027397,2]
[425039609,1781440250000,-500.0,0.00027397,2]
[425039620,1781440250000,-500.0,0.00027397,2]
[425039612,1781440250000,-500.0,0.00027397,2]
[425039613,1781440250000,-500.0,0.00027397,2]
[425039614,1781440250000,-500.0,0.00027397,2]
[425039619,1781440250000,-505.32,0.00027397,2]
[425039598,1781440250000,-500.0,0.00027397,2]
[425039650,1781440250000,-500.0,0.00027397,2]
[425039645,1781440250000,-500.0,0.00027397,2]
[425039654,1781440250000,-500.0,0.00027397,2]
[425039681,1781440250000,-500.0,0.00027397,2]
[425039679,1781440250000,-500.0,0.00027397,2]
[425039683,1781440250000,-500.0,0.00027397,2]
[425039689,1781440250000,-500.0,0.00027397,2]
[425039684,1781440250000,-397.18,0.00027397,2]
[425039686,1781440250000,-402.0,0.00027397,2]
[425039685,1781440250000,-611.27,0.00027397,2]
[425039687,1781440250000,-500.0,0.00027397,2]
[425039688,1781440250000,-500.0,0.00027397,2]
[425039692,1781440250000,-500.0,0.00027397,2]
[425039694,1781440250000,-500.0,0.00027397,2]
[425039695,1781440250000,-369.79,0.00027397,2]
[425039693,1781440250000,-500.0,0.00027397,2]
[425039697,1781440250000,-500.0,0.00027397,2]
[425039700,1781440250000,-500.0,0.00027397,2]
[425039703,1781440250000,-500.0,0.00027397,2]
[425039701,1781440250000,-500.0,0.00027397,2]
[425039699,1781440250000,-500.0,0.00027397,2]
[425039702,1781440250000,-500.0,0.00027397,2]
[425039698,1781440250000,-500.0,0.00027397,2]
[425039696,1781440250000,-500.0,0.00027397,2]
[425039704,1781440250000,-500.0,0.00027397,2]
[425039705,1781440250000,-500.0,0.00027397,2]
[425039706,1781440250000,-500.0,0.00027397,2]
[425039708,1781440250000,-500.0,0.00027397,2]
[425039655,1781440250000,-500.0,0.00027397,2]
[425039709,1781440250000,-500.0,0.00027397,2]
[425039682,1781440250000,-384.0,0.00027397,2]
[425039691,1781440250000,-500.0,0.00027397,2]
[425039707,1781440250000,-500.0,0.00027397,2]
[425039680,1781440250000,-500.0,0.00027397,2]
[425039652,1781440250000,-598.88,0.00027397,2]
[425039653,1781440250000,-500.0,0.00027397,2]
[425039649,1781440250000,-278.38,0.00027397,2]
[425039648,1781440250000,-1000.0,0.00027397,2]
[425039657,1781440250000,-500.0,0.00027397,2]
[425039667,1781440250000,-500.0,0.00027397,2]
[425039665,1781440250000,-315.68,0.00027397,2]
[425039690,1781440250000,-500.0,0.00027397,2]
[425039656,1781440250000,-500.0,0.00027397,2]
[425039659,1781440250000,-500.0,0.00027397,2]
[425039658,1781440250000,-545.88,0.00027397,2]
[425039660,1781440250000,-622.22,0.00027397,2]
[425039661,1781440250000,-153.09,0.00027397,2]
[425039666,1781440250000,-500.0,0.00027397,2]
[425039663,1781440250000,-245.08,0.00027397,2]
[425039662,1781440250000,-473.12,0.00027397,2]
[425039672,1781440250000,-500.0,0.00027397,2]
[425039674,1781440250000,-500.0,0.00027397,2]
[425039673,1781440250000,-520.85,0.00027397,2]
[425039676,1781440250000,-500.0,0.00027397,2]
[425039677,1781440250000,-265.0,0.00027397,2]
[425039675,1781440250000,-560.0,0.00027397,2]
[425039671,1781440250000,-419.56,0.00027397,2]
[425039670,1781440250000,-500.0,0.00027397,2]
[425039669,1781440250000,-500.0,0.00027397,2]
[425039668,1781440250000,-500.0,0.00027397,2]
[425039664,1781440250000,-500.0,0.00027397,2]
[425039678,1781440250000,-500.0,0.00027397,2]
[425039756,1781440251000,-500.0,0.00027397,2]
[425039749,1781440251000,-500.0,0.00027397,2]
[425039744,1781440251000,-500.0,0.00027397,2]
[425039747,1781440251000,-500.0,0.00027397,2]
[425039745,1781440251000,-366.12,0.00027397,2]
[425039748,1781440251000,-500.0,0.00027397,2]
[425039740,1781440251000,-315.6,0.00027397,2]
[425039742,1781440251000,-500.0,0.00027397,2]
[425039746,1781440251000,-500.0,0.00027397,2]
[425039741,1781440251000,-500.0,0.00027397,2]
[425039743,1781440251000,-500.0,0.00027397,2]
[425039752,1781440251000,-500.0,0.00027397,2]
[425039765,1781440251000,-333.91,0.00027397,2]
[425039750,1781440251000,-500.0,0.00027397,2]
[425039751,1781440251000,-500.0,0.00027397,2]
[425039753,1781440251000,-500.0,0.00027397,2]
[425039754,1781440251000,-485.44,0.00027397,2]
[425039760,1781440251000,-500.0,0.00027397,2]
[425039759,1781440251000,-500.0,0.00027397,2]
[425039761,1781440251000,-630.2,0.00027397,2]
[425039758,1781440251000,-318.3,0.00027397,2]
[425039757,1781440251000,-500.0,0.00027397,2]
[425039763,1781440251000,-500.0,0.00027397,2]